fUSD/lending_fUSD_20260412
["ID","MTS","AMOUNT","RATE_DAILY","PERIOD"]
[420321309,1775962281756,-642.12916987,0.0003863,8]
[420321310,1775962281766,-500.0,0.0003863,8]
[420321311,1775962281798,-1644.39,0.0003863,8]
[420321312,1775962281807,-500.0,0.0003863,8]
[420321313,1775962281817,-256.15957889,0.0003863,8]
[420321314,1775962281834,-500.0,0.0003863,8]
[420321315,1775962281845,-500.0,0.0003863,8]
[420321316,1775962281854,-500.0,0.0003863,8]
[420321317,1775962281876,-500.0,0.0003863,8]
[420321318,1775962281902,-1378.71,0.0003863,8]
[420321319,1775962281916,-500.0,0.0003863,8]
[420321320,1775962281934,-500.0,0.0003863,8]
[420321321,1775962281951,-1844.61,0.0003863,8]
[420321322,1775962281966,-151.60464072,0.0003863,8]
[420321323,1775962281988,-500.0,0.0003863,8]
[420321324,1775962281998,-500.0,0.0003863,8]
[420321325,1775962282018,-651.99,0.0003863,8]
[420321326,1775962282028,-500.0,0.0003863,8]
[420321327,1775962282039,-175.23184611,0.0003863,8]
[420321328,1775962282060,-500.0,0.0003863,8]
[420321329,1775962282070,-500.0,0.0003863,8]
[420321330,1775962282081,-525.84,0.0003863,8]
[420321331,1775962282107,-500.0,0.0003863,8]
[420321332,1775962282117,-1430.05,0.0003863,8]
[420321333,1775962282136,-500.0,0.0003863,8]
[420321334,1775962282153,-500.0,0.0003863,8]
[420321335,1775962282166,-2234.67,0.0003863,8]
[420321336,1775962282186,-574.60916917,0.0003863,8]
[420321337,1775962282202,-736.91,0.0003863,8]
[420321338,1775962282241,-500.0,0.0003863,8]
[420321339,1775962282252,-1098.86,0.0003863,8]
[420321340,1775962282286,-968.16,0.0003863,8]
[420321341,1775962282300,-500.0,0.0003863,8]
[420321342,1775962282326,-500.0,0.0003863,8]
[420321343,1775962282338,-500.0,0.0003863,8]
[420321344,1775962282347,-500.0,0.0003863,8]
[420321345,1775962282362,-500.0,0.0003863,8]
[420321346,1775962282388,-799.5,0.0003863,8]
[420321347,1775962282398,-500.0,0.0003863,8]
[420321348,1775962282410,-500.0,0.0003863,8]
[420321349,1775962282421,-500.0,0.0003863,8]
[420321350,1775962282435,-500.0,0.0003863,8]
[420321351,1775962282443,-500.0,0.0003863,8]
[420321352,1775962282456,-500.0,0.0003863,8]
[420321353,1775962282487,-1717.33,0.0003863,8]
[420321354,1775962282496,-500.0,0.0003863,8]
[420321355,1775962282520,-703.3,0.0003863,8]
[420321356,1775962282529,-674.21,0.0003863,8]
[420321357,1775962282543,-500.0,0.0003863,8]
[420321358,1775962282552,-653.0,0.0003863,8]
[420321359,1775962282569,-500.0,0.0003863,8]
[420321360,1775962282578,-315.56075183,0.0003863,8]
[420321361,1775962282587,-500.0,0.0003863,8]
[420321362,1775962282597,-500.0,0.0003863,8]
[420321363,1775962282614,-500.0,0.0003863,8]
[420321364,1775962282636,-747.44,0.0003863,8]
[420321365,1775962282645,-500.0,0.0003863,8]
[420321366,1775962282664,-500.0,0.0003863,8]
[420321367,1775962282674,-1360.63,0.0003863,8]
[420321368,1775962282683,-660.04,0.0003863,8]
[420321369,1775962282692,-500.0,0.0003863,8]
[420321370,1775962282716,-500.0,0.0003863,8]
[420321371,1775962282730,-500.0,0.0003863,8]
[420321372,1775962282739,-173.43593875,0.0003863,8]
[420321373,1775962282750,-500.0,0.0003863,8]
[420321374,1775962282766,-500.0,0.0003863,8]
[420321375,1775962282783,-1459.67,0.0003863,8]
[420321376,1775962282793,-1240.9,0.0003863,8]
[420321377,1775962282802,-500.0,0.0003863,8]
[420321378,1775962282817,-571.17002419,0.0003863,8]
[420321379,1775962282826,-1185.03,0.0003863,8]
[420321380,1775962282837,-500.0,0.0003863,8]
[420321381,1775962282848,-500.0,0.0003863,8]
[420321382,1775962282856,-800.37,0.0003863,8]
[420321383,1775962282866,-500.0,0.0003863,8]
[420321384,1775962282875,-500.0,0.0003863,8]
[420321385,1775962282888,-162.65454404,0.0003863,8]
[420321386,1775962282900,-500.0,0.0003863,8]
[420321387,1775962282910,-1092.72,0.0003863,8]
[420321388,1775962282920,-537.49804796,0.0003863,8]
[420321389,1775962282929,-500.0,0.0003863,8]
[420321390,1775962282939,-505.43942907,0.0003863,8]
[420321391,1775962282950,-500.0,0.0003863,8]
[420321392,1775962282961,-500.0,0.0003863,8]
[420321393,1775962282972,-500.0,0.0003863,8]
[420321394,1775962282981,-500.0,0.0003863,8]
[420321395,1775962282993,-502.18541568,0.0003863,8]
[420321396,1775962283003,-500.0,0.0003863,8]
[420321397,1775962283018,-188.54528811,0.0003863,8]
[420321398,1775962283030,-189.78389006,0.0003863,8]
[420321399,1775962283040,-500.0,0.0003863,8]
[420321400,1775962283052,-500.0,0.0003863,8]
[420321401,1775962283063,-500.0,0.0003863,8]
[420321402,1775962283075,-240.77,0.0003863,8]
[420321403,1775962283086,-500.0,0.0003863,8]
[420321404,1775962283099,-500.0,0.0003863,8]
[420321405,1775962283113,-500.0,0.0003863,8]
[420321406,1775962283124,-500.0,0.0003863,8]
[420321407,1775962283140,-568.69,0.0003863,8]
[420321408,1775962283165,-563.77,0.0003863,8]
[420321409,1775962283176,-500.0,0.0003863,8]
[420321410,1775962283186,-500.0,0.0003863,8]
[420321411,1775962283227,-500.0,0.0003863,8]
[420321412,1775962283237,-570.1,0.0003863,8]
[420321413,1775962283250,-500.0,0.0003863,8]
[420321414,1775962283283,-500.0,0.0003863,8]
[420321415,1775962283293,-769.76,0.0003863,8]
[420321416,1775962283330,-2456.36,0.0003863,8]
[420321417,1775962283340,-500.0,0.0003863,8]
[420321418,1775962283362,-890.47,0.0003863,8]
[420321419,1775962283390,-1013.42,0.0003863,8]
[420321420,1775962283409,-500.0,0.0003863,8]
[420321421,1775962283428,-500.0,0.0003863,8]
[420321422,1775962283440,-500.0,0.0003863,8]
[420321423,1775962283452,-500.0,0.0003863,8]
[420321424,1775962283469,-500.0,0.0003863,8]
[420321425,1775962283479,-767.39,0.0003863,8]
[420321426,1775962283506,-500.0,0.0003863,8]
[420321427,1775962283515,-500.0,0.0003863,8]
[420321428,1775962283526,-500.0,0.0003863,8]
[420321429,1775962283546,-500.0,0.0003863,8]
[420321430,1775962283564,-500.0,0.0003863,8]
[420321431,1775962283576,-500.0,0.0003863,8]
[420321432,1775962283598,-861.96,0.0003863,8]
[420321433,1775962283609,-739.09,0.0003863,8]
[420321434,1775962283621,-500.0,0.0003863,8]
[420321435,1775962283654,-500.0,0.0003863,8]
[420321436,1775962283668,-500.0,0.0003863,8]
[420321437,1775962283678,-500.0,0.0003863,8]
[420321438,1775962283704,-617.26084822,0.0003863,8]
[420321439,1775962283714,-500.0,0.0003863,8]
[420321440,1775962283728,-500.0,0.0003863,8]
[420321441,1775962283758,-610.39,0.0003863,8]
[420321442,1775962283770,-500.0,0.0003863,8]
[420321443,1775962283816,-500.0,0.0003863,8]
[420321444,1775962283828,-500.0,0.0003863,8]
[420321445,1775962283840,-500.0,0.0003863,8]
[420321446,1775962283851,-500.0,0.0003863,8]
[420321447,1775962283867,-500.0,0.0003863,8]
[420321448,1775962283879,-500.0,0.0003863,8]
[420321449,1775962283897,-544.45,0.0003863,8]
[420321450,1775962283907,-500.0,0.0003863,8]
[420321451,1775962283916,-190.93463954,0.0003863,8]
[420321452,1775962283930,-500.0,0.0003863,8]
[420321453,1775962283946,-500.0,0.0003863,8]
[420321454,1775962283955,-553.41211277,0.0003863,8]
[420321455,1775962283968,-500.0,0.0003863,8]
[420321456,1775962283986,-1256.85,0.0003863,8]
[420321457,1775962283997,-500.0,0.0003863,8]
[420321458,1775962284019,-926.53,0.0003863,8]
[420321459,1775962284031,-540.21344993,0.0003863,8]
[420321460,1775962284042,-500.0,0.0003863,8]
[420321461,1775962284064,-500.0,0.0003863,8]
[420321462,1775962284080,-500.0,0.0003863,8]
[420321463,1775962284107,-597.75,0.0003863,8]
[420321464,1775962284118,-696.98,0.0003863,8]
[420321465,1775962284128,-500.0,0.0003863,8]
[420321466,1775962284146,-500.0,0.0003863,8]
[420321467,1775962284172,-500.0,0.0003863,8]
[420321468,1775962284185,-500.0,0.0003863,8]
[420321469,1775962284200,-500.0,0.0003863,8]
[420321470,1775962284217,-588.03037008,0.0003863,8]
[420321471,1775962284228,-581.83,0.0003863,8]
[420321472,1775962284238,-969.23,0.0003863,8]
[420321473,1775962284249,-500.0,0.0003863,8]
[420321474,1775962284263,-1925.83,0.0003863,8]
[420321475,1775962284278,-739.68,0.0003863,8]
[420321476,1775962284291,-500.0,0.0003863,8]
[420321477,1775962284301,-500.0,0.0003863,8]
[420321478,1775962284310,-500.0,0.0003863,8]
[420321479,1775962284323,-781.63,0.0003863,8]
[420321480,1775962284335,-500.0,0.0003863,8]
[420321481,1775962284345,-500.0,0.0003863,8]
[420321482,1775962284355,-176.10580922,0.0003863,8]
[420321483,1775962284365,-991.58,0.0003863,8]
[420321484,1775962284377,-500.0,0.0003863,8]
[420321485,1775962284387,-500.0,0.0003863,8]
[420321486,1775962284397,-500.0,0.0003863,8]
[420321487,1775962284406,-551.14,0.0003863,8]
[420321488,1775962284418,-3415.03,0.0003863,8]
[420321489,1775962284429,-500.0,0.0003863,8]
[420321490,1775962284438,-2978.9,0.0003863,8]
[420321491,1775962284448,-608.79552525,0.0003863,8]
[420321492,1775962284458,-500.0,0.0003863,8]
[420321493,1775962284471,-500.0,0.0003863,8]
[420321494,1775962284481,-2588.69,0.0003863,8]
[420321495,1775962284491,-365.37481023,0.0003863,8]
[420321496,1775962284500,-500.0,0.0003863,8]
[420321497,1775962284521,-1547.53,0.0003863,8]
[420321498,1775962284532,-500.0,0.0003863,8]
[420321499,1775962284542,-2893.89,0.0003863,8]
[420321500,1775962284555,-500.0,0.0003863,8]
[420321501,1775962284566,-212.79534214,0.0003863,8]
[420321502,1775962284576,-522.85935568,0.0003863,8]
[420321503,1775962284586,-500.0,0.0003863,8]
[420321504,1775962284601,-500.0,0.0003863,8]
[420321505,1775962284612,-500.0,0.0003863,8]
[420321506,1775962284622,-500.0,0.0003863,8]
[420321507,1775962284638,-500.0,0.0003863,8]
[420321508,1775962284655,-500.0,0.0003863,8]
[420321509,1775962284664,-500.0,0.0003863,8]
[420321510,1775962284681,-1025.65,0.0003863,8]
[420321511,1775962284704,-1181.61,0.0003863,8]
[420321512,1775962284719,-989.53,0.0003863,8]
[420321513,1775962284748,-500.0,0.0003863,8]
[420321514,1775962284763,-1939.4,0.0003863,8]
[420321515,1775962284805,-190.76987721,0.0003863,8]
[420321516,1775962284827,-2100.93,0.0003863,8]
[420321517,1775962284863,-1688.29,0.0003863,8]
[420321518,1775962284881,-500.0,0.0003863,8]
[420321519,1775962284942,-500.0,0.0003863,8]
[420321520,1775962284996,-500.0,0.0003863,8]
[420321521,1775962285013,-500.0,0.0003863,8]
[420321522,1775962285060,-797.13,0.0003863,8]
[420321523,1775962285072,-928.88,0.0003863,8]
[420321524,1775962285169,-500.0,0.0003863,8]
[420321525,1775962285193,-500.0,0.0003863,8]
[420321526,1775962285214,-680.19,0.0003863,8]
[420321527,1775962285233,-500.0,0.0003863,8]
[420321528,1775962285266,-500.0,0.0003863,8]
[420321529,1775962285275,-513.51,0.0003863,8]
[420321530,1775962285294,-2458.41,0.0003863,8]
[420321531,1775962285312,-2826.59,0.0003863,8]
[420321532,1775962285322,-949.31,0.0003863,8]
[420321533,1775962285344,-628.47393992,0.0003863,8]
[420321534,1775962285354,-500.0,0.0003863,8]
[420321535,1775962285364,-500.0,0.0003863,8]
[420321536,1775962285376,-500.0,0.0003863,8]
[420321537,1775962285392,-527.36,0.0003863,8]
[420321538,1775962285402,-500.0,0.0003863,8]
[420321539,1775962285412,-1408.75,0.0003863,8]
[420321540,1775962285430,-500.0,0.0003863,8]
[420321541,1775962285446,-453.25555897,0.0003863,8]
[420321542,1775962285456,-500.0,0.0003863,8]
[420321543,1775962285480,-500.0,0.0003863,8]
[420321544,1775962285507,-500.0,0.0003863,8]
[420321545,1775962285518,-500.0,0.0003863,8]
[420321546,1775962285533,-500.0,0.0003863,8]
[420321547,1775962285567,-2096.21,0.0003863,8]
[420321548,1775962285585,-500.0,0.0003863,8]
[420321549,1775962285598,-1588.12,0.0003863,8]
[420321550,1775962285626,-1373.31,0.0003863,8]
[420321551,1775962285653,-500.0,0.0003863,8]
[420321552,1775962285674,-500.0,0.0003863,8]
[420321553,1775962285698,-2242.9,0.0003863,8]
[420321554,1775962285714,-197.29025922,0.0003863,8]
[420321555,1775962285750,-500.0,0.0003863,8]
[420321556,1775962285760,-500.0,0.0003863,8]
[420321557,1775962285770,-1653.71,0.0003863,8]
[420321558,1775962285791,-500.0,0.0003863,8]
[420321559,1775962285801,-500.0,0.0003863,8]
[420321560,1775962285811,-170.43722521,0.0003863,8]
[420321561,1775962285836,-618.60119354,0.0003863,8]
[420321562,1775962285846,-500.0,0.0003863,8]
[420321563,1775962285856,-500.0,0.0003863,8]
[420321564,1775962285878,-500.0,0.0003863,2]
[420321565,1775962285887,-610.92,0.0003863,8]
[420321566,1775962285897,-500.0,0.0003863,8]
[420321567,1775962285912,-1121.52,0.0003863,8]
[420321568,1775962285925,-500.0,0.0003863,8]
[420321569,1775962285942,-500.0,0.0003863,8]
[420321570,1775962285952,-500.0,0.0003863,8]
[420321571,1775962285961,-1182.44,0.0003863,8]
[420321572,1775962285971,-2208.54,0.0003863,2]
[420321573,1775962285985,-500.0,0.0003863,8]
[420321574,1775962285997,-500.0,0.0003863,8]
[420321575,1775962286007,-500.0,0.0003863,8]
[420321576,1775962286016,-500.0,0.0003863,2]
[420321577,1775962286035,-500.0,0.0003863,8]
[420321578,1775962286044,-1589.12,0.0003863,8]
[420321579,1775962286054,-750.35,0.0003863,8]
[420321580,1775962286072,-500.0,0.0003863,8]
[420321581,1775962286082,-500.0,0.0003863,8]
[420321582,1775962286095,-5525.67,0.0003863,8]
[420321583,1775962286106,-781.67,0.0003863,8]
[420321584,1775962286134,-500.0,0.0003863,8]
[420321585,1775962286145,-500.0,0.0003863,8]
[420321586,1775962286177,-1439.94,0.0003863,8]
[420321587,1775962286201,-500.0,0.0003863,8]
[420321588,1775962286212,-1077.72,0.0003863,8]
[420321589,1775962286226,-500.0,0.0003863,8]
[420321590,1775962286259,-500.0,0.0003863,8]
[420321591,1775962286269,-500.0,0.0003863,8]
[420321592,1775962286297,-894.58,0.0003863,2]
[420321593,1775962286327,-1011.88,0.0003863,8]
[420321594,1775962286337,-2164.14,0.0003863,8]
[420321595,1775962286363,-523.62330065,0.0003863,8]
[420321596,1775962286373,-730.76,0.0003863,8]
[420321597,1775962286383,-500.0,0.0003863,8]
[420321598,1775962286415,-2841.3,0.0003863,8]
[420321599,1775962286424,-500.0,0.0003863,8]
[420321600,1775962286444,-714.16,0.0003863,8]
[420321601,1775962286455,-605.34966634,0.0003863,8]
[420321602,1775962286464,-500.0,0.0003863,8]
[420321603,1775962286476,-500.0,0.0003863,8]
[420321604,1775962286506,-1153.91,0.0003863,8]
[420321605,1775962286534,-438.74307421,0.0003863,8]
[420321606,1775962286546,-500.0,0.0003863,8]
[420321607,1775962286571,-606.23051465,0.0003863,8]
[420321608,1775962286593,-164.02306971,0.0003863,8]
[420321609,1775962286603,-500.0,0.0003863,8]
[420321610,1775962286613,-500.0,0.0003863,8]
[420321611,1775962286630,-500.0,0.0003863,120]
[420321612,1775962286648,-500.0,0.0003863,8]
[420321613,1775962286660,-614.33,0.0003863,8]
[420321614,1775962286670,-500.0,0.0003863,2]
[420321615,1775962286688,-500.0,0.0003863,8]
[420321616,1775962286697,-237.80815662,0.0003863,8]
[420321617,1775962286712,-500.0,0.0003863,8]
[420321618,1775962286722,-1997.43,0.0003863,8]
[420321619,1775962286750,-500.0,0.0003863,8]
[420321620,1775962286761,-1617.58,0.0003863,8]
[420321621,1775962286776,-500.0,0.0003863,8]
[420321622,1775962286789,-500.0,0.0003863,8]
[420321623,1775962286799,-500.0,0.0003863,8]
[420321624,1775962286809,-604.37,0.0003863,8]
[420321625,1775962286841,-500.0,0.0003863,8]
[420321626,1775962286855,-500.0,0.0003863,8]
[420321627,1775962286877,-500.0,0.0003863,8]
[420321628,1775962286892,-500.0,0.0003863,8]
[420321629,1775962286903,-1907.3,0.0003863,8]
[420321630,1775962286920,-2287.73,0.0003863,8]
[420321631,1775962286948,-500.0,0.0003863,8]
[420321632,1775962287217,-500.0,0.0003863,8]
[420321633,1775962287228,-599.14,0.0003863,8]
[420321634,1775962287243,-500.0,0.0003863,8]
[420321635,1775962287273,-621.97,0.0003863,2]
[420321636,1775962287283,-639.21,0.0003863,8]
[420321637,1775962287328,-1675.34,0.0003863,8]
[420321638,1775962287345,-1788.77,0.0003863,8]
[420321639,1775962287367,-500.0,0.0003863,8]
[420321640,1775962287399,-885.57,0.0003863,8]
[420321641,1775962287416,-500.0,0.0003863,8]
[420321642,1775962287464,-500.0,0.0003863,8]
[420321643,1775962287487,-1677.11,0.0003863,8]
[420321644,1775962287503,-500.0,0.0003863,8]
[420321645,1775962287540,-500.0,0.0003863,8]
[420321646,1775962287551,-1659.73,0.0003863,8]
[420321647,1775962287561,-500.0,0.0003863,8]
[420321648,1775962287587,-500.0,0.0003863,8]
[420321649,1775962287598,-500.0,0.0003863,8]
[420321650,1775962287638,-869.63,0.0003863,8]
[420321651,1775962287648,-500.0,0.0003863,8]
[420321652,1775962287675,-500.0,0.0003863,8]
[420321653,1775962287686,-222.96057767,0.0003863,8]
[420321654,1775962287699,-588.36,0.0003863,8]
[420321655,1775962287734,-1345.06,0.0003863,8]
[420321656,1775962287747,-1928.28,0.0003863,8]
[420321657,1775962287767,-2227.36,0.0003863,8]
[420321658,1775962287783,-500.0,0.0003863,8]
[420321659,1775962287793,-2086.67,0.0003863,8]
[420321660,1775962287806,-500.0,0.0003863,8]
[420321661,1775962287816,-357.00546011,0.0003863,8]
[420321662,1775962287826,-500.0,0.0003863,8]
[420321663,1775962287836,-1619.88,0.0003863,8]
[420321664,1775962287849,-500.0,0.0003863,8]
[420321665,1775962287860,-500.0,0.0003863,8]
[420321666,1775962287871,-500.0,0.0003863,8]
[420321667,1775962287889,-1112.5,0.0003863,8]
[420321668,1775962287900,-560.95,0.0003863,8]
[420321669,1775962287909,-500.0,0.0003863,8]
[420321670,1775962287919,-3441.25,0.0003863,8]
[420321671,1775962287940,-500.0,0.0003863,8]
[420321672,1775962287949,-500.0,0.0003863,8]
[420321673,1775962287958,-1814.93,0.0003863,8]
[420321674,1775962287968,-1523.14,0.0003863,8]
[420321675,1775962287989,-1142.02,0.0003863,8]
[420321676,1775962288007,-500.0,0.0003863,8]
[420321677,1775962288016,-627.28010241,0.0003863,8]
[420321678,1775962288026,-500.0,0.0003863,8]
[420321679,1775962288046,-672.18,0.0003863,8]
[420321680,1775962288066,-295.88847325,0.0003863,8]
[420321681,1775962288081,-827.58,0.0003863,8]
[420321682,1775962288102,-2774.55,0.0003863,8]
[420321683,1775962288114,-500.0,0.0003863,8]
[420321684,1775962288127,-500.0,0.0003863,8]
[420321685,1775962288144,-500.0,0.0003863,8]
[420321686,1775962288162,-756.96,0.0003863,8]
[420321687,1775962288193,-500.0,0.0003863,8]
[420321688,1775962288203,-863.14,0.0003863,8]
[420321689,1775962288234,-1248.22,0.0003863,8]
[420321690,1775962288245,-500.0,0.0003863,8]
[420321691,1775962288285,-1248.22,0.0003863,8]
[420321692,1775962288296,-500.0,0.0003863,8]
[420321693,1775962288311,-500.0,0.0003863,8]
[420321694,1775962288330,-500.0,0.0003863,8]
[420321695,1775962288340,-500.0,0.0003863,8]
[420321696,1775962288369,-500.0,0.0003863,8]
[420321697,1775962288378,-500.0,0.0003863,8]
[420321698,1775962288389,-643.92,0.0003863,8]
[420321699,1775962288405,-500.0,0.0003863,8]
[420321700,1775962288416,-880.77,0.0003863,8]
[420321701,1775962288426,-500.0,0.0003863,8]
[420321702,1775962288440,-3811.9,0.0003863,8]
[420321703,1775962288454,-2960.88,0.0003863,8]
[420321704,1775962288466,-666.15,0.0003863,8]
[420321705,1775962288478,-500.0,0.0003863,8]
[420321706,1775962288491,-500.0,0.0003863,8]
[420321707,1775962288501,-500.0,0.0003863,8]
[420321708,1775962288514,-862.85,0.0003863,8]
[420321709,1775962288527,-287.28495669,0.0003863,8]
[420321710,1775962288539,-291.88506958,0.0003863,8]
[420321711,1775962288552,-500.0,0.0003863,8]
[420321712,1775962288562,-3041.22,0.0003863,120]
[420321713,1775962288577,-500.0,0.0003863,8]
[420321714,1775962288599,-500.0,0.0003863,8]
[420321715,1775962288608,-500.0,0.0003863,8]
[420321716,1775962288618,-500.0,0.0003863,8]
[420321717,1775962288627,-500.0,0.0003863,8]
[420321718,1775962288644,-515.51,0.0003863,8]
[420321719,1775962288653,-500.0,0.0003863,8]
[420321720,1775962288663,-500.0,0.0003863,8]
[420321721,1775962288672,-197.56671409,0.0003863,8]
[420321722,1775962288684,-500.0,0.0003863,8]
[420321723,1775962288693,-500.0,0.0003863,8]
[420321724,1775962288702,-1344.88,0.0003863,8]
[420321725,1775962288711,-2465.56,0.0003863,8]
[420321726,1775962288721,-864.93,0.0003863,8]
[420321727,1775962288735,-629.64158866,0.0003863,8]
[420321728,1775962288745,-500.0,0.0003863,8]
[420321729,1775962288755,-1968.38,0.0003863,8]
[420321730,1775962288766,-276.53295815,0.0003863,8]
[420321731,1775962288775,-500.0,0.0003863,8]
[420321732,1775962288785,-500.0,0.0003863,8]
[420321733,1775962288794,-514.04928022,0.0003863,8]
[420321734,1775962288806,-755.3,0.0003863,8]
[420321735,1775962288821,-500.0,0.0003863,8]
[420321736,1775962288830,-500.0,0.0003863,8]
[420321737,1775962288844,-500.0,0.0003863,8]
[420321738,1775962288853,-500.0,0.0003863,8]
[420321739,1775962288864,-1258.48,0.0003863,8]
[420321740,1775962288876,-500.0,0.0003863,8]
[420321741,1775962288887,-1205.12,0.0003863,8]
[420321742,1775962288903,-500.0,0.0003863,8]
[420321743,1775962288917,-500.0,0.0003863,8]
[420321744,1775962288929,-645.35,0.0003863,8]
[420321745,1775962288951,-500.0,0.0003863,8]
[420321746,1775962288964,-582.44,0.0003863,8]
[420321747,1775962288986,-648.55,0.0003863,8]
[420321748,1775962289009,-500.0,0.0003863,8]
[420321749,1775962289051,-500.0,0.0003863,8]
[420321750,1775962289066,-1666.95,0.0003863,8]
[420321751,1775962289084,-1640.2,0.0003863,8]
[420321752,1775962289096,-2508.32,0.0003863,8]
[420321753,1775962289111,-500.0,0.0003863,8]
[420321754,1775962289133,-500.0,0.0003863,8]
[420321755,1775962289152,-500.0,0.0003863,8]
[420321756,1775962289162,-500.0,0.0003863,8]
[420321757,1775962289182,-500.0,0.0003863,8]
[420321758,1775962289209,-500.0,0.0003863,8]
[420321759,1775962289238,-757.79,0.0003863,8]
[420321760,1775962289247,-500.0,0.0003863,8]
[420321761,1775962289264,-958.27,0.0003863,8]
[420321762,1775962289279,-500.0,0.0003863,8]
[420321763,1775962289291,-500.0,0.0003863,8]
[420321764,1775962289300,-1346.21,0.0003863,8]
[420321765,1775962289314,-1044.62,0.0003863,8]
[420321766,1775962289327,-500.0,0.0003863,8]
[420321767,1775962289340,-888.97,0.0003863,8]
[420321768,1775962289352,-1773.2,0.0003863,8]
[420321769,1775962289375,-1773.2,0.0003863,8]
[420321770,1775962289388,-500.0,0.0003863,8]
[420321771,1775962289401,-830.02,0.0003863,8]
[420321772,1775962289434,-634.1,0.0003863,8]
[420321773,1775962289444,-2783.99,0.0003863,8]
[420321774,1775962289464,-500.0,0.0003863,8]
[420321775,1775962289473,-500.0,0.0003863,8]
[420321776,1775962289487,-500.0,0.0003863,8]
[420321777,1775962289499,-3599.72,0.0003863,8]
[420321778,1775962289520,-500.0,0.0003863,8]
[420321779,1775962289530,-159.79846676,0.0003863,8]
[420321780,1775962289541,-616.67056065,0.0003863,8]
[420321781,1775962289561,-500.0,0.0003863,8]
[420321782,1775962289579,-500.0,0.0003863,8]
[420321783,1775962289594,-500.0,0.0003863,8]
[420321784,1775962289608,-500.0,0.0003863,8]
[420321785,1775962289621,-500.0,0.0003863,8]
[420321786,1775962289643,-500.0,0.0003863,8]
[420321787,1775962289656,-500.0,0.0003863,8]
[420321788,1775962289666,-2249.8,0.0003863,8]
[420321789,1775962289693,-1526.09,0.0003863,8]
[420321790,1775962289703,-500.0,0.0003863,8]
[420321791,1775962289715,-500.0,0.0003863,8]
[420321792,1775962289743,-464.43697869,0.0003863,8]
[420321793,1775962289756,-2199.4,0.0003863,8]
[420321794,1775962289770,-794.78,0.0003863,8]
[420321795,1775962289784,-2164.99,0.0003863,8]
[420321796,1775962289796,-500.0,0.0003863,8]
[420321797,1775962289806,-1674.34,0.0003863,8]
[420321798,1775962289826,-500.0,0.0003863,8]
[420321799,1775962289839,-1025.84,0.0003863,8]
[420321800,1775962289849,-500.0,0.0003863,8]
[420321801,1775962289864,-881.26,0.0003863,8]
[420321802,1775962289882,-500.0,0.0003863,8]
[420321803,1775962289892,-500.0,0.0003863,8]
[420321804,1775962289902,-552.38,0.0003863,8]
[420321805,1775962289925,-153.56041881,0.0003863,8]
[420321806,1775962289935,-500.0,0.0003863,8]
[420321807,1775962289961,-500.0,0.0003863,8]
[420321808,1775962289970,-500.0,0.0003863,8]